[Event "Titled Tuesday Blitz October 31 Early 2023"]
[White "Semenova, Alina"]
[Black "Avazkhonov, Alikhon"]
[WhiteFideId "24113875"]
[BlackFideId "14208504"]
[WhiteElo "2160"]
[BlackElo "2497"]
[Result "0-1"]
[Round "5"]
[TimeControl "180+1"]
[Date "2023.10.31"]
[WhiteClock "0:01:13"]
[BlackClock "0:02:22"]
[Board "111"]

1. e4 {[%clk 0:03:00]}  c5 {[%clk 0:02:55]} 2. Nf3 {[%clk 0:02:57]}  d6 {[%clk 0:02:54]} 3. d4 {[%clk 0:02:58]}  cxd4 {[%clk 0:02:55]} 4. Nxd4 {[%clk 0:02:59]}  Nf6 {[%clk 0:02:55]} 5. Nc3 {[%clk 0:02:58]}  a6 {[%clk 0:02:56]} 6. f3 {[%clk 0:02:58]}  e5 {[%clk 0:02:56]} 7. Nb3 {[%clk 0:02:58]}  Be6 {[%clk 0:02:56]} 8. Be3 {[%clk 0:02:59]}  h5 {[%clk 0:02:56]} 9. Qd2 {[%clk 0:02:59]}  Nbd7 {[%clk 0:02:56]} 10. O-O-O {[%clk 0:02:59]}  Rc8 {[%clk 0:02:56]} 11. Kb1 {[%clk 0:02:58]}  Be7 {[%clk 0:02:57]} 12. h3 {[%clk 0:02:56]}  b5 {[%clk 0:02:57]} 13. Nd5 {[%clk 0:02:55]}  Bxd5 {[%clk 0:02:56]} 14. exd5 {[%clk 0:02:56]}  Nb6 {[%clk 0:02:57]} 15. Bxb6 {[%clk 0:02:48]}  Qxb6 {[%clk 0:02:57]} 16. Bd3 {[%clk 0:02:08]}  h4 {[%clk 0:02:44]} 17. Bf5 {[%clk 0:01:56]}  Rb8 {[%clk 0:02:43]} 18. Na5 {[%clk 0:01:50]}  g6 {[%clk 0:02:43]} 19. Be4 {[%clk 0:01:47]}  b4 {[%clk 0:02:32]} 20. Nc6 {[%clk 0:01:46]}  Rb7 {[%clk 0:02:32]} 21. Qg5 {[%clk 0:01:13]}  Nxe4 {[%clk 0:02:22]} 0-1


[Site "https://www.chess.com"]

[Event "Titled Tuesday Blitz October 31 Early 2023"]
[White "Costachi, Mihnea"]
[Black "McBryde, Lamel"]
[WhiteFideId "1217518"]
[BlackFideId "2058596"]
[WhiteElo "2734"]
[BlackElo "2421"]
[Result "1-0"]
[Round "5"]
[TimeControl "180+1"]
[Date "2023.10.31"]
[WhiteClock "0:02:09"]
[BlackClock "0:01:30"]
[Board "113"]

1. b3 {[%clk 0:02:57]}  Nf6 {[%clk 0:02:47]} 2. Bb2 {[%clk 0:02:57]}  e6 {[%clk 0:02:48]} 3. f4 {[%clk 0:02:56]}  d6 {[%clk 0:02:47]} 4. Nf3 {[%clk 0:02:57]}  b6 {[%clk 0:02:47]} 5. e3 {[%clk 0:02:57]}  Bb7 {[%clk 0:02:48]} 6. Be2 {[%clk 0:02:57]}  Nbd7 {[%clk 0:02:48]} 7. O-O {[%clk 0:02:57]}  c5 {[%clk 0:02:48]} 8. d3 {[%clk 0:02:53]}  Qc7 {[%clk 0:02:46]} 9. Nbd2 {[%clk 0:02:52]}  d5 {[%clk 0:02:41]} 10. Ne5 {[%clk 0:02:48]}  Bd6 {[%clk 0:02:40]} 11. Ndf3 {[%clk 0:02:48]}  O-O {[%clk 0:02:33]} 12. Qe1 {[%clk 0:02:43]}  Ne8 {[%clk 0:02:16]} 13. Qh4 {[%clk 0:02:38]}  f6 {[%clk 0:02:15]} 14. Ng4 {[%clk 0:02:38]}  Qc8 {[%clk 0:02:15]} 15. Rae1 {[%clk 0:02:34]}  Nc7 {[%clk 0:02:02]} 16. Bd1 {[%clk 0:02:29]}  Qe8 {[%clk 0:02:01]} 17. e4 {[%clk 0:02:24]}  dxe4 {[%clk 0:02:01]} 18. dxe4 {[%clk 0:02:23]}  e5 {[%clk 0:01:57]} 19. fxe5 {[%clk 0:02:20]}  Nxe5 {[%clk 0:01:56]} 20. Nfxe5 {[%clk 0:02:15]}  Bxe5 {[%clk 0:01:50]} 21. Nxe5 {[%clk 0:02:11]}  fxe5 {[%clk 0:01:50]} 22. Rxf8+ {[%clk 0:02:12]}  Kxf8 {[%clk 0:01:30]} 23. Qxh7 {[%clk 0:02:09]} 1-0


[Site "https://www.chess.com"]

[Event "Titled Tuesday Blitz October 31 Early 2023"]
[White "Miszler, Levente"]
[Black "Arhan_Anand"]
[WhiteFideId "763276"]
[WhiteElo "2416"]
[BlackElo "2691"]
[Result "1-0"]
[Round "5"]
[TimeControl "180+1"]
[Date "2023.10.31"]
[WhiteClock "0:00:36"]
[BlackClock "0:00:00"]
[Board "114"]

1. Nf3 {[%clk 0:03:00]}  d5 {[%clk 0:02:59]} 2. d4 {[%clk 0:03:00]}  Nf6 {[%clk 0:02:57]} 3. Bf4 {[%clk 0:03:00]}  c5 {[%clk 0:02:56]} 4. e3 {[%clk 0:03:00]}  e6 {[%clk 0:02:54]} 5. Nbd2 {[%clk 0:02:57]}  Bd6 {[%clk 0:02:53]} 6. Bg3 {[%clk 0:02:50]}  Nc6 {[%clk 0:02:52]} 7. c3 {[%clk 0:02:51]}  O-O {[%clk 0:02:46]} 8. Bd3 {[%clk 0:02:49]}  Qc7 {[%clk 0:02:44]} 9. dxc5 {[%clk 0:02:46]}  Bxg3 {[%clk 0:02:43]} 10. hxg3 {[%clk 0:02:46]}  e5 {[%clk 0:02:41]} 11. e4 {[%clk 0:02:47]}  Bg4 {[%clk 0:02:32]} 12. Qc2 {[%clk 0:02:43]}  d4 {[%clk 0:02:29]} 13. Nc4 {[%clk 0:02:38]}  dxc3 {[%clk 0:02:27]} 14. Qxc3 {[%clk 0:02:36]}  Bxf3 {[%clk 0:02:26]} 15. gxf3 {[%clk 0:02:37]}  Nd4 {[%clk 0:02:26]} 16. O-O-O {[%clk 0:02:29]}  Qxc5 {[%clk 0:02:24]} 17. f4 {[%clk 0:02:29]}  Nxe4 {[%clk 0:02:18]} 18. Qe1 {[%clk 0:02:21]}  f5 {[%clk 0:02:10]} 19. Bxe4 {[%clk 0:02:21]}  Qxc4+ {[%clk 0:02:10]} 20. Kb1 {[%clk 0:02:21]}  fxe4 {[%clk 0:02:09]} 21. Qxe4 {[%clk 0:02:21]}  g6 {[%clk 0:02:06]} 22. fxe5 {[%clk 0:02:18]}  Rad8 {[%clk 0:02:03]} 23. e6 {[%clk 0:02:12]}  Qd5 {[%clk 0:01:49]} 24. Qxd5 {[%clk 0:00:59]}  Rxd5 {[%clk 0:01:50]} 25. Rh4 {[%clk 0:00:59]}  Re5 {[%clk 0:01:11]} 26. Rhxd4 {[%clk 0:00:57]}  Rxe6 {[%clk 0:00:59]} 27. Rd7 {[%clk 0:00:57]}  Rf7 {[%clk 0:00:50]} 28. R1d2 {[%clk 0:00:48]}  Rxd7 {[%clk 0:00:27]} 29. Rxd7 {[%clk 0:00:49]}  Re1+ {[%clk 0:00:28]} 30. Kc2 {[%clk 0:00:41]}  Re2+ {[%clk 0:00:29]} 31. Kc1 {[%clk 0:00:41]}  Rxf2 {[%clk 0:00:28]} 32. Rxb7 {[%clk 0:00:41]}  a5 {[%clk 0:00:28]} 33. Rb5 {[%clk 0:00:37]}  Rg2 {[%clk 0:00:26]} 34. Rxa5 {[%clk 0:00:37]}  Rxg3 {[%clk 0:00:00]} 35. b4 {[%clk 0:00:36]} 1-0


[Site "https://www.chess.com"]

[Event "Titled Tuesday Blitz October 31 Early 2023"]
[White "Goswami, Vedant"]
[Black "Wizard_97"]
[WhiteFideId "5003725"]
[WhiteElo "2375"]
[BlackElo "2615"]
[Result "0-1"]
[Round "5"]
[TimeControl "180+1"]
[Date "2023.10.31"]
[WhiteClock "0:00:08"]
[BlackClock "0:02:00"]
[Board "115"]

1. c4 {[%clk 0:02:13]}  e5 {[%clk 0:02:58]} 2. Nc3 {[%clk 0:02:08]}  Nc6 {[%clk 0:02:58]} 3. e3 {[%clk 0:02:06]}  Nf6 {[%clk 0:02:58]} 4. d4 {[%clk 0:02:04]}  exd4 {[%clk 0:02:57]} 5. exd4 {[%clk 0:02:04]}  d5 {[%clk 0:02:57]} 6. Nf3 {[%clk 0:02:04]}  Bg4 {[%clk 0:02:57]} 7. Be3 {[%clk 0:02:02]}  Bb4 {[%clk 0:02:57]} 8. Bd3 {[%clk 0:02:00]}  O-O {[%clk 0:02:57]} 9. O-O {[%clk 0:01:58]}  h6 {[%clk 0:02:53]} 10. c5 {[%clk 0:01:57]}  Bxc3 {[%clk 0:02:51]} 11. bxc3 {[%clk 0:01:56]}  Re8 {[%clk 0:02:50]} 12. h3 {[%clk 0:01:54]}  Bh5 {[%clk 0:02:47]} 13. Rb1 {[%clk 0:01:54]}  Qc8 {[%clk 0:02:43]} 14. Bf4 {[%clk 0:01:42]}  Ne4 {[%clk 0:02:42]} 15. Rc1 {[%clk 0:01:22]}  Na5 {[%clk 0:02:37]} 16. Re1 {[%clk 0:01:14]}  Qf5 {[%clk 0:02:31]} 17. Bxc7 {[%clk 0:00:58]}  Nc4 {[%clk 0:02:14]} 18. Bxc4 {[%clk 0:00:41]}  dxc4 {[%clk 0:02:11]} 19. Re3 {[%clk 0:00:34]}  Ng5 {[%clk 0:02:09]} 20. Nh4 {[%clk 0:00:16]}  Qd5 {[%clk 0:02:02]} 21. Qxh5 {[%clk 0:00:15]}  Rxe3 {[%clk 0:02:00]} 22. fxe3 {[%clk 0:00:12]}  Nxh3+ {[%clk 0:02:00]} 23. gxh3 {[%clk 0:00:08]}  Qxh5 {[%clk 0:02:00]} 0-1


[Site "https://www.chess.com"]

[Event "Titled Tuesday Blitz October 31 Early 2023"]
[White "LiadCuba"]
[Black "Leyva Proenza, Richard"]
[BlackFideId "3500985"]
[WhiteElo "2366"]
[BlackElo "2600"]
[Result "0-1"]
[Round "5"]
[TimeControl "180+1"]
[Date "2023.10.31"]
[WhiteClock "0:00:00"]
[BlackClock "0:00:18"]
[Board "116"]

1. d4 {[%clk 0:02:56]}  Nf6 {[%clk 0:02:59]} 2. c4 {[%clk 0:02:56]}  g6 {[%clk 0:02:59]} 3. Nc3 {[%clk 0:02:56]}  Bg7 {[%clk 0:03:00]} 4. e4 {[%clk 0:02:57]}  d6 {[%clk 0:03:00]} 5. Be2 {[%clk 0:02:57]}  O-O {[%clk 0:02:59]} 6. Be3 {[%clk 0:02:56]}  c5 {[%clk 0:02:55]} 7. dxc5 {[%clk 0:02:48]}  Qa5 {[%clk 0:02:55]} 8. cxd6 {[%clk 0:02:36]}  Nxe4 {[%clk 0:02:53]} 9. dxe7 {[%clk 0:02:30]}  Re8 {[%clk 0:02:37]} 10. Bd2 {[%clk 0:02:19]}  Nxc3 {[%clk 0:02:26]} 11. Qc2 {[%clk 0:01:51]}  Nc6 {[%clk 0:02:15]} 12. Bxc3 {[%clk 0:01:27]}  Bxc3+ {[%clk 0:02:06]} 13. Qxc3 {[%clk 0:01:28]}  Qxc3+ {[%clk 0:01:51]} 14. bxc3 {[%clk 0:01:29]}  Rxe7 {[%clk 0:01:50]} 15. O-O-O {[%clk 0:01:26]}  Be6 {[%clk 0:01:45]} 16. Nf3 {[%clk 0:01:23]}  Na5 {[%clk 0:01:45]} 17. Rd4 {[%clk 0:01:16]}  Rc8 {[%clk 0:01:39]} 18. Nd2 {[%clk 0:01:15]}  Rec7 {[%clk 0:01:39]} 19. Rd1 {[%clk 0:01:04]}  Bxc4 {[%clk 0:01:38]} 20. Nxc4 {[%clk 0:00:51]}  Nxc4 {[%clk 0:01:39]} 21. Rd8+ {[%clk 0:00:50]}  Rxd8 {[%clk 0:01:35]} 22. Rxd8+ {[%clk 0:00:51]}  Kg7 {[%clk 0:01:35]} 23. Bxc4 {[%clk 0:00:42]}  Rxc4 {[%clk 0:01:35]} 24. Kc2 {[%clk 0:00:43]}  Rc7 {[%clk 0:01:28]} 25. Kb3 {[%clk 0:00:41]}  Kf6 {[%clk 0:01:28]} 26. a4 {[%clk 0:00:36]}  Ke7 {[%clk 0:01:28]} 27. Rd4 {[%clk 0:00:36]}  Rd7 {[%clk 0:01:28]} 28. Kc4 {[%clk 0:00:33]}  Rd6 {[%clk 0:01:11]} 29. a5 {[%clk 0:00:29]}  Rf6 {[%clk 0:00:55]} 30. f4 {[%clk 0:00:22]}  Re6 {[%clk 0:00:41]} 31. g4 {[%clk 0:00:15]}  Re2 {[%clk 0:00:40]} 32. h4 {[%clk 0:00:15]}  Rh2 {[%clk 0:00:35]} 33. h5 {[%clk 0:00:08]}  gxh5 {[%clk 0:00:35]} 34. gxh5 {[%clk 0:00:08]}  Rxh5 {[%clk 0:00:35]} 35. Kb4 {[%clk 0:00:04]}  Rf5 {[%clk 0:00:32]} 36. c4 {[%clk 0:00:04]}  h5 {[%clk 0:00:32]} 37. c5 {[%clk 0:00:03]}  h4 {[%clk 0:00:32]} 38. a6 {[%clk 0:00:03]}  bxa6 {[%clk 0:00:27]} 39. c6 {[%clk 0:00:04]}  Rb5+ {[%clk 0:00:19]} 40. Kc4 {[%clk 0:00:04]}  Rb1 {[%clk 0:00:19]} 41. Kd5 {[%clk 0:00:03]}  Rc1 {[%clk 0:00:18]} 42. Rc4 {[%clk 0:00:01]}  Rxc4 {[%clk 0:00:18]} 43. Kxc4 {[%clk 0:00:02]}  Kd6 {[%clk 0:00:18]} 44. c7 {[%clk 0:00:00]}  Kxc7 {[%clk 0:00:18]} 0-1


[Site "https://www.chess.com"]

[Event "Titled Tuesday Blitz October 31 Early 2023"]
[White "Aaditya Dhingra"]
[Black "Ovezdurdyyeva, Jemal"]
[WhiteFideId "25678191"]
[BlackFideId "14001888"]
[WhiteElo "2568"]
[BlackElo "2362"]
[Result "1-0"]
[Round "5"]
[TimeControl "180+1"]
[Date "2023.10.31"]
[WhiteClock "0:00:06"]
[BlackClock "0:00:04"]
[Board "117"]

1. e4 {[%clk 0:03:00]}  d6 {[%clk 0:02:58]} 2. d4 {[%clk 0:03:00]}  Nf6 {[%clk 0:02:58]} 3. Nc3 {[%clk 0:03:00]}  g6 {[%clk 0:02:58]} 4. Nf3 {[%clk 0:02:58]}  c6 {[%clk 0:02:59]} 5. h3 {[%clk 0:02:57]}  Bg7 {[%clk 0:02:59]} 6. Be3 {[%clk 0:02:57]}  b5 {[%clk 0:02:58]} 7. e5 {[%clk 0:02:56]}  dxe5 {[%clk 0:02:42]} 8. dxe5 {[%clk 0:02:55]}  Qxd1+ {[%clk 0:02:42]} 9. Rxd1 {[%clk 0:02:54]}  Nfd7 {[%clk 0:02:43]} 10. e6 {[%clk 0:02:48]}  fxe6 {[%clk 0:02:43]} 11. Bd4 {[%clk 0:02:29]}  e5 {[%clk 0:02:29]} 12. Be3 {[%clk 0:02:29]}  O-O {[%clk 0:02:27]} 13. h4 {[%clk 0:02:28]}  Nb6 {[%clk 0:02:23]} 14. h5 {[%clk 0:02:26]}  Bf5 {[%clk 0:02:16]} 15. hxg6 {[%clk 0:02:24]}  hxg6 {[%clk 0:02:12]} 16. Bd3 {[%clk 0:02:15]}  Bxd3 {[%clk 0:01:33]} 17. Rxd3 {[%clk 0:02:13]}  Nc4 {[%clk 0:01:29]} 18. Bc1 {[%clk 0:02:11]}  Na6 {[%clk 0:01:23]} 19. a3 {[%clk 0:01:47]}  Nc5 {[%clk 0:01:19]} 20. Rd1 {[%clk 0:01:43]}  e4 {[%clk 0:01:16]} 21. Ng5 {[%clk 0:01:41]}  Bxc3+ {[%clk 0:01:12]} 22. bxc3 {[%clk 0:01:42]}  Rf5 {[%clk 0:01:06]} 23. Rd4 {[%clk 0:01:14]}  Nxa3 {[%clk 0:00:56]} 24. Kd1 {[%clk 0:01:06]}  Nc4 {[%clk 0:00:52]} 25. Nxe4 {[%clk 0:00:57]}  Nxe4 {[%clk 0:00:52]} 26. Rxe4 {[%clk 0:00:58]}  Rxf2 {[%clk 0:00:52]} 27. Rxe7 {[%clk 0:00:54]}  Rd8+ {[%clk 0:00:46]} 28. Ke1 {[%clk 0:00:52]}  Rf7 {[%clk 0:00:30]} 29. Re6 {[%clk 0:00:49]}  Rfd7 {[%clk 0:00:21]} 30. Rxg6+ {[%clk 0:00:35]}  Kf7 {[%clk 0:00:20]} 31. Rgh6 {[%clk 0:00:25]}  Rd1+ {[%clk 0:00:20]} 32. Ke2 {[%clk 0:00:25]}  Rxh1 {[%clk 0:00:20]} 33. Rxh1 {[%clk 0:00:26]}  a5 {[%clk 0:00:20]} 34. Rh6 {[%clk 0:00:24]}  Rc8 {[%clk 0:00:19]} 35. g4 {[%clk 0:00:22]}  a4 {[%clk 0:00:18]} 36. g5 {[%clk 0:00:21]}  a3 {[%clk 0:00:19]} 37. Rh7+ {[%clk 0:00:21]}  Kg6 {[%clk 0:00:18]} 38. Ra7 {[%clk 0:00:22]}  Re8+ {[%clk 0:00:17]} 39. Kf3 {[%clk 0:00:21]}  Rf8+ {[%clk 0:00:15]} 40. Ke2 {[%clk 0:00:20]}  Re8+ {[%clk 0:00:08]} 41. Kf2 {[%clk 0:00:20]}  Rf8+ {[%clk 0:00:08]} 42. Ke2 {[%clk 0:00:19]}  Rf5 {[%clk 0:00:08]} 43. Ra6 {[%clk 0:00:16]}  Rc5 {[%clk 0:00:07]} 44. Kd3 {[%clk 0:00:15]}  Ne5+ {[%clk 0:00:07]} 45. Kd4 {[%clk 0:00:14]}  Rd5+ {[%clk 0:00:08]} 46. Ke4 {[%clk 0:00:14]}  Nc4 {[%clk 0:00:08]} 47. Rxc6+ {[%clk 0:00:13]}  Kh5 {[%clk 0:00:08]} 48. Kxd5 {[%clk 0:00:12]}  a2 {[%clk 0:00:05]} 49. Ra6 {[%clk 0:00:13]}  Nb6+ {[%clk 0:00:06]} 50. Ke4 {[%clk 0:00:08]}  Na4 {[%clk 0:00:07]} 51. Bb2 {[%clk 0:00:08]}  Nxb2 {[%clk 0:00:07]} 52. Rxa2 {[%clk 0:00:07]}  Na4 {[%clk 0:00:08]} 53. Kd4 {[%clk 0:00:06]}  Kxg5 {[%clk 0:00:04]} 54. c4 {[%clk 0:00:06]} 1-0


[Site "https://www.chess.com"]

[Event "Titled Tuesday Blitz October 31 Early 2023"]
[White "Avalos Parra, Joao"]
[Black "Golubev, Mikhail"]
[WhiteFideId "3402541"]
[BlackFideId "14100983"]
[WhiteElo "2346"]
[BlackElo "2562"]
[Result "1-0"]
[Round "5"]
[TimeControl "180+1"]
[Date "2023.10.31"]
[WhiteClock "0:00:14"]
[BlackClock "0:00:00"]
[Board "118"]

1. d4 {[%clk 0:03:00]}  Nf6 {[%clk 0:02:54]} 2. c4 {[%clk 0:02:58]}  g6 {[%clk 0:02:52]} 3. Nc3 {[%clk 0:02:53]}  Bg7 {[%clk 0:02:53]} 4. Nf3 {[%clk 0:02:53]}  O-O {[%clk 0:02:52]} 5. Bg5 {[%clk 0:02:54]}  d6 {[%clk 0:02:49]} 6. e3 {[%clk 0:02:54]}  c5 {[%clk 0:02:49]} 7. d5 {[%clk 0:02:52]}  e6 {[%clk 0:02:42]} 8. Be2 {[%clk 0:02:50]}  exd5 {[%clk 0:02:40]} 9. cxd5 {[%clk 0:02:51]}  Na6 {[%clk 0:02:32]} 10. h3 {[%clk 0:02:48]}  Nc7 {[%clk 0:02:31]} 11. O-O {[%clk 0:02:48]}  Rb8 {[%clk 0:02:27]} 12. a4 {[%clk 0:02:47]}  a6 {[%clk 0:02:27]} 13. a5 {[%clk 0:02:44]}  b5 {[%clk 0:02:25]} 14. axb6 {[%clk 0:02:44]}  Rxb6 {[%clk 0:02:25]} 15. Rb1 {[%clk 0:02:40]}  h6 {[%clk 0:02:22]} 16. Bh4 {[%clk 0:02:37]}  g5 {[%clk 0:02:20]} 17. Bg3 {[%clk 0:02:38]}  Nh5 {[%clk 0:01:55]} 18. Bh2 {[%clk 0:02:37]}  Bxc3 {[%clk 0:01:51]} 19. bxc3 {[%clk 0:02:34]}  Rxb1 {[%clk 0:01:51]} 20. Qxb1 {[%clk 0:02:35]}  Nxd5 {[%clk 0:01:51]} 21. Qd3 {[%clk 0:02:25]}  Be6 {[%clk 0:00:52]} 22. Ra1 {[%clk 0:02:07]}  Qf6 {[%clk 0:00:44]} 23. Rxa6 {[%clk 0:02:03]}  Nxc3 {[%clk 0:00:39]} 24. Rxd6 {[%clk 0:01:48]}  c4 {[%clk 0:00:15]} 25. Qd2 {[%clk 0:01:43]}  Ne4 {[%clk 0:00:14]} 26. Rxe6 {[%clk 0:01:26]}  Qxe6 {[%clk 0:00:11]} 27. Qc2 {[%clk 0:01:21]}  c3 {[%clk 0:00:09]} 28. Nd4 {[%clk 0:01:21]}  Qe7 {[%clk 0:00:06]} 29. Bxh5 {[%clk 0:01:20]}  Ra8 {[%clk 0:00:03]} 30. Bd1 {[%clk 0:00:21]}  Qb7 {[%clk 0:00:02]} 31. Be5 {[%clk 0:00:19]}  Ra1 {[%clk 0:00:00]} 32. Nb3 {[%clk 0:00:14]} 1-0


[Site "https://www.chess.com"]

[Event "Titled Tuesday Blitz October 31 Early 2023"]
[White "sjoerd893"]
[Black "Harriott, Tyrell"]
[BlackFideId "2086484"]
[WhiteElo "2520"]
[BlackElo "2321"]
[Result "1-0"]
[Round "5"]
[TimeControl "180+1"]
[Date "2023.10.31"]
[WhiteClock "0:00:30"]
[BlackClock "0:00:02"]
[Board "120"]

1. e4 {[%clk 0:03:00]}  d5 {[%clk 0:02:52]} 2. exd5 {[%clk 0:03:01]}  Nf6 {[%clk 0:02:52]} 3. d4 {[%clk 0:03:01]}  Qxd5 {[%clk 0:02:51]} 4. Nc3 {[%clk 0:03:00]}  Qa5 {[%clk 0:02:48]} 5. Nf3 {[%clk 0:02:58]}  Ne4 {[%clk 0:02:46]} 6. Bd2 {[%clk 0:02:37]}  Nxd2 {[%clk 0:02:44]} 7. Qxd2 {[%clk 0:02:37]}  g6 {[%clk 0:02:39]} 8. Bc4 {[%clk 0:02:31]}  Bg7 {[%clk 0:02:36]} 9. O-O-O {[%clk 0:02:26]}  O-O {[%clk 0:02:35]} 10. Kb1 {[%clk 0:02:24]}  c6 {[%clk 0:02:29]} 11. h4 {[%clk 0:02:10]}  Bg4 {[%clk 0:02:26]} 12. Bb3 {[%clk 0:02:00]}  Nd7 {[%clk 0:02:24]} 13. Qf4 {[%clk 0:01:55]}  Nf6 {[%clk 0:02:21]} 14. Rde1 {[%clk 0:01:50]}  e6 {[%clk 0:02:18]} 15. Ne5 {[%clk 0:01:48]}  Bf5 {[%clk 0:01:59]} 16. g4 {[%clk 0:01:46]}  Rad8 {[%clk 0:00:54]} 17. gxf5 {[%clk 0:01:44]}  exf5 {[%clk 0:00:53]} 18. h5 {[%clk 0:01:31]}  Nd5 {[%clk 0:00:21]} 19. Nxd5 {[%clk 0:01:17]}  cxd5 {[%clk 0:00:20]} 20. hxg6 {[%clk 0:00:46]}  hxg6 {[%clk 0:00:18]} 21. Qh4 {[%clk 0:00:44]}  Rfe8 {[%clk 0:00:16]} 22. f4 {[%clk 0:00:34]}  Qb6 {[%clk 0:00:13]} 23. c3 {[%clk 0:00:33]}  Qf6 {[%clk 0:00:10]} 24. Qxf6 {[%clk 0:00:27]}  Bxf6 {[%clk 0:00:11]} 25. Reg1 {[%clk 0:00:27]}  Kg7 {[%clk 0:00:11]} 26. Bc2 {[%clk 0:00:27]}  Kf8 {[%clk 0:00:10]} 27. Rh7 {[%clk 0:00:25]}  Bxe5 {[%clk 0:00:09]} 28. dxe5 {[%clk 0:00:23]}  d4 {[%clk 0:00:07]} 29. Bb3 {[%clk 0:00:20]}  Re7 {[%clk 0:00:06]} 30. Rxg6 {[%clk 0:00:18]}  fxg6 {[%clk 0:00:03]} 31. Rh8+ {[%clk 0:00:18]}  Kg7 {[%clk 0:00:04]} 32. Rxd8 {[%clk 0:00:19]}  dxc3 {[%clk 0:00:03]} 33. bxc3 {[%clk 0:00:20]}  Rc7 {[%clk 0:00:04]} 34. Kb2 {[%clk 0:00:19]}  Kh6 {[%clk 0:00:04]} 35. e6 {[%clk 0:00:18]}  Kg7 {[%clk 0:00:04]} 36. Rd7+ {[%clk 0:00:18]}  Rxd7 {[%clk 0:00:04]} 37. exd7 {[%clk 0:00:19]}  Kf6 {[%clk 0:00:04]} 38. d8=Q+ {[%clk 0:00:20]}  Kg7 {[%clk 0:00:04]} 39. Qg5 {[%clk 0:00:21]}  Kf8 {[%clk 0:00:04]} 40. Be6 {[%clk 0:00:22]}  Ke8 {[%clk 0:00:03]} 41. Bxf5 {[%clk 0:00:22]}  gxf5 {[%clk 0:00:03]} 42. Qxf5 {[%clk 0:00:23]}  Ke7 {[%clk 0:00:03]} 43. Qe5+ {[%clk 0:00:24]}  Kd8 {[%clk 0:00:03]} 44. f5 {[%clk 0:00:25]}  Kc8 {[%clk 0:00:04]} 45. f6 {[%clk 0:00:26]}  Kd7 {[%clk 0:00:04]} 46. Qe7+ {[%clk 0:00:27]}  Kc6 {[%clk 0:00:04]} 47. f7 {[%clk 0:00:28]}  Kb6 {[%clk 0:00:04]} 48. f8=Q {[%clk 0:00:29]}  a6 {[%clk 0:00:05]} 49. Qf2+ {[%clk 0:00:28]}  Kc6 {[%clk 0:00:05]} 50. Qec5+ {[%clk 0:00:29]}  Kd7 {[%clk 0:00:02]} 51. Qf7+ {[%clk 0:00:30]} 1-0


[Site "https://www.chess.com"]

[Event "Titled Tuesday Blitz October 31 Early 2023"]
[White "Elbebiber"]
[Black "MFatigue"]
[WhiteElo "2135"]
[BlackElo "2482"]
[Result "0-1"]
[Round "5"]
[TimeControl "180+1"]
[Date "2023.10.31"]
[WhiteClock "0:00:00"]
[BlackClock "0:00:09"]
[Board "125"]

1. f4 {[%clk 0:03:00]}  e6 {[%clk 0:02:54]} 2. Nf3 {[%clk 0:02:59]}  d5 {[%clk 0:02:54]} 3. e3 {[%clk 0:02:57]}  c5 {[%clk 0:02:55]} 4. b3 {[%clk 0:02:55]}  Nc6 {[%clk 0:02:55]} 5. Bb5 {[%clk 0:02:54]}  a6 {[%clk 0:02:54]} 6. Bxc6+ {[%clk 0:02:54]}  bxc6 {[%clk 0:02:55]} 7. Ne5 {[%clk 0:02:51]}  Qc7 {[%clk 0:02:53]} 8. Bb2 {[%clk 0:02:49]}  Bd6 {[%clk 0:02:32]} 9. O-O {[%clk 0:02:43]}  Nf6 {[%clk 0:02:31]} 10. d3 {[%clk 0:02:35]}  O-O {[%clk 0:02:31]} 11. Nd2 {[%clk 0:02:31]}  Nd7 {[%clk 0:02:31]} 12. Ndf3 {[%clk 0:02:20]}  Nxe5 {[%clk 0:02:31]} 13. Nxe5 {[%clk 0:02:16]}  f6 {[%clk 0:02:31]} 14. Nf3 {[%clk 0:02:10]}  Bd7 {[%clk 0:02:31]} 15. g3 {[%clk 0:02:04]}  Rae8 {[%clk 0:02:32]} 16. e4 {[%clk 0:01:56]}  e5 {[%clk 0:02:04]} 17. f5 {[%clk 0:01:53]}  c4 {[%clk 0:01:51]} 18. Kg2 {[%clk 0:01:22]}  Rd8 {[%clk 0:01:47]} 19. Qe2 {[%clk 0:01:16]}  cxd3 {[%clk 0:01:19]} 20. cxd3 {[%clk 0:01:15]}  Qb6 {[%clk 0:01:12]} 21. Rac1 {[%clk 0:01:01]}  c5 {[%clk 0:00:59]} 22. Rfd1 {[%clk 0:00:44]}  Qb7 {[%clk 0:00:54]} 23. Ba3 {[%clk 0:00:35]}  Rc8 {[%clk 0:00:51]} 24. Rc2 {[%clk 0:00:31]}  Bb5 {[%clk 0:00:51]} 25. Rdc1 {[%clk 0:00:24]}  dxe4 {[%clk 0:00:31]} 26. Qxe4 {[%clk 0:00:24]}  Bc6 {[%clk 0:00:32]} 27. Qe3 {[%clk 0:00:23]}  Bb5 {[%clk 0:00:23]} 28. Bxc5 {[%clk 0:00:20]}  Bxc5 {[%clk 0:00:24]} 29. Rxc5 {[%clk 0:00:20]}  Rxc5 {[%clk 0:00:25]} 30. Qxc5 {[%clk 0:00:18]}  Bxd3 {[%clk 0:00:19]} 31. Qc6 {[%clk 0:00:06]}  Qxc6 {[%clk 0:00:07]} 32. Rxc6 {[%clk 0:00:07]}  Bb5 {[%clk 0:00:07]} 33. Rd6 {[%clk 0:00:06]}  Rc8 {[%clk 0:00:06]} 34. Rd2 {[%clk 0:00:06]}  Kf7 {[%clk 0:00:07]} 35. g4 {[%clk 0:00:06]}  Ke7 {[%clk 0:00:07]} 36. Kf2 {[%clk 0:00:06]}  g6 {[%clk 0:00:08]} 37. fxg6 {[%clk 0:00:05]}  hxg6 {[%clk 0:00:09]} 38. h4 {[%clk 0:00:06]}  Ke6 {[%clk 0:00:09]} 39. g5 {[%clk 0:00:06]}  f5 {[%clk 0:00:08]} 40. Ne1 {[%clk 0:00:06]}  e4 {[%clk 0:00:09]} 41. Ng2 {[%clk 0:00:06]}  Ke5 {[%clk 0:00:09]} 42. Ne3 {[%clk 0:00:05]}  f4 {[%clk 0:00:09]} 43. Rd5+ {[%clk 0:00:05]}  Ke6 {[%clk 0:00:09]} 44. Rd2 {[%clk 0:00:02]}  fxe3+ {[%clk 0:00:09]} 45. Kxe3 {[%clk 0:00:03]}  Ke5 {[%clk 0:00:09]} 46. Rf2 {[%clk 0:00:00]}  Rc3+ {[%clk 0:00:09]} 0-1


[Site "https://www.chess.com"]